Cogmind - Beta 13 --- EXPLORER MODE // 2024.04.08 @ 01:57:32 Player: devwitch Result: Self-destructed Performance ------------- Evolutions (3) 1500 Regions Visited (4) 800 Robots Destroyed (29) 145 Value Destroyed (777) 777 Prototype IDs (0) 0 Alien Tech Used (0) 0 Bonus (0) 0 TOTAL SCORE: 3222 Bonus ------- None Cogmind --------- Core Integrity 656/700 Matter 246/300 Energy 310/310 System Corruption 0% Temperature Cool (0) Movement Treading (160) Location -7/Factory Parts ------- > --- POWER (2) -------- Ion Engine Light Nuclear Core > --- PROPULSION (3) --- Light Treads Improved Treads Improved Treads > --- UTILITY (6) ------ Improved Heat Sink Large Storage Unit Structural Scanner Targeting Computer Targeting Computer Targeting Computer > --- WEAPON (3) ------- Light Assault Rifle Light Assault Rifle > --- INVENTORY (15) --- Light Ion Engine Improved Ion Engine Light Treads Heat Sink Weight Redist. System Core Shielding Heavy Ion Cannon Light Assault Rifle Autogun Improved Light Cannon Mini Grenade Launcher Peak State ------------ > --- POWER ------------ Ion Engine Light Nuclear Core > --- PROPULSION ------- Light Treads Improved Treads Advanced Treads > --- UTILITY ---------- Improved Heat Sink Large Storage Unit Structural Scanner Targeting Computer Targeting Computer Targeting Computer > --- WEAPON ----------- Light Assault Rifle Light Assault Rifle Light Assault Rifle > --- INVENTORY -------- Light Ion Engine Improved Ion Engine Light Treads Improved Treads Heat Sink Core Shielding Light Assault Rifle Improved Light Cannon Mini Grenade Launcher [Rating: 22] Favorites ----------- Power Ion Engine Engine Ion Engine Power Core Light Nuclear Core Propulsion Light Treads Treads Light Treads Utility Targeting Computer Device Sensor Array Storage Large Storage Unit Processor Targeting Computer Protection Light Armor Plating Weapon Light Assault Rifle Energy Gun Small Laser Ballistic Gun Light Assault Rifle Build | -11 -10 -9 -8 -7 ------- Run | Yrd Mat Mat Mat Fac Slots Evolved 7 | . 1 2 2 2 Power 1 | . . . 1 . Propulsion 1 | . . . 1 . Utility 4 | . . 2 . 2 Weapon 1 | . 1 . . . Parts Attached 30 | 7 2 7 9 5 Power 5 | 1 1 1 2 . Engine 4 | 1 1 1 1 . Core 1 | . . . 1 . Reactor . | . . . . . Propulsion 10 | 2 . 3 2 3 Treads 10 | 2 . 3 2 3 Leg . | . . . . . Wheel . | . . . . . Hover . | . . . . . Flight . | . . . . . Utility 10 | 2 . 2 4 2 Device 4 | 1 . . 3 . Storage 2 | 1 . . 1 . Processor 3 | . . 1 . 2 Hackware . | . . . . . Protection 1 | . . 1 . . Artifact . | . . . . . Weapon 5 | 2 1 1 1 . Energy Gun 1 | . 1 . . . Energy Cannon . | . . . . . Ballistic Gun 4 | 2 . 1 1 . Ballistic Cannon . | . . . . . Launcher . | . . . . . Special Weapon . | . . . . . Impact Weapon . | . . . . . Slashing Weapon . | . . . . . Piercing Weapon . | . . . . . Special Melee Weapon . | . . . . . Unidentified Prototypes . | . . . . . Parts Lost 6 | . 1 . 3 2 Power 1 | . 1 . . . Propulsion 1 | . . . . 1 Utility 2 | . . . 2 . Weapon 2 | . . . 1 1 Highest Loss Streak 2 | . 1 . 2 1 To Critical Strikes . | . . . . . Average Slot Usage (%) 98 | . 100 100 98 96 Engine 10 | . 12 10 14 7 Core 3 | . . . 1 7 Treads 22 | . 25 20 24 21 Device 12 | . 12 10 9 14 Storage 9 | . 12 10 8 7 Processor 10 | . . 10 8 17 Protection 2 | . . 10 6 . Energy Gun 3 | . 12 4 . . Ballistic Gun 23 | . 25 25 25 21 Naked Turns . | . . . . . Heaviest Build 40 | 19 20 25 40 35 Greatest Support 68 | 40 40 46 68 66 Greatest Overweight (x) . | . . . . . Average Overweight (x) . | . . . . . Largest Inventory Capacity 15 | 10 10 10 15 15 Average Capacity 12 | 8 10 10 14 15 Most Carried 11 | 5 6 9 10 11 Average Carried 7 | 2 4 7 8 10 Final Capacity 15 | 10 10 10 15 15 Final Carried 11 | 5 5 9 9 11 Class Distribution -------------------- 71% | Hacker-Gunner 28% | Hacker-Skirmisher Dominant Class ---------------- Hacker-Skirmisher | -10/Materials Hacker-Gunner | -9/Materials Hacker-Gunner | -8/Materials Hacker-Gunner | -7/Factory Resources | -11 -10 -9 -8 -7 ----------- Run | Yrd Mat Mat Mat Fac Matter Collected 679 | 184 140 153 162 40 Remotely . | . . . . . Salvage Created 870 | . 175 206 261 228 Parts 65 | . 16 20 16 13 Haulers Intercepted . | . . . . . Recyclers Shooed 1 | . . . 1 . Parts Field Recycled . | . . . . . Retrieved Matter . | . . . . . Parts Self-Destructed . | . . . . . Prevented . | . . . . . Kills | -11 -10 -9 -8 -7 ------- Run | Yrd Mat Mat Mat Fac Combat Hostiles Destroyed 25 | . 6 3 9 7 Guns 25 | . 6 3 9 7 Classes Destroyed 5 | . 3 1 1 . Watcher 4 | . 1 3 . . Swarmer 16 | . 4 . 5 7 Grunt 5 | . 2 . 3 . Duelist 1 | . . . 1 . Sentry 3 | . . 3 . . Best Kill Streak 5 | . 5 2 3 3 Combat Bots Only 4 | . 4 1 3 3 Max Kills in Single Turn 2 | . 1 1 2 1 Gunslinging 1 | . . . 1 . Exploded . | . . . . . Melee . | . . . . . Uniques/NPCs Destroyed . | . . . . . Combat | -11 -10 -9 -8 -7 -------- Run | Yrd Mat Mat Mat Fac Hostile Shots Fired 208 | . 75 28 63 42 Missed 62 | . 27 11 14 10 Damage Taken 1548 | . 454 162 628 304 Core 280 | . 107 31 98 44 Absorbed by Shields . | . . . . . Ignored by Resistances 949 | . 281 97 380 191 Core Remaining (%) 82 | 100 57 92 82 . Volleys Fired 70 | . 15 13 24 18 Largest 3 | . 3 3 3 3 Hottest 80 | . 80 80 60 60 Shots Fired 205 | . 43 36 72 54 Gun 205 | . 43 36 72 54 Cannon . | . . . . . Launcher . | . . . . . Special . | . . . . . Kinetic 190 | . 31 33 72 54 Thermal 15 | . 12 3 . . Explosive . | . . . . . Electromagnetic . | . . . . . Robot Hit Streak 49 | . 31 6 22 49 Robot Miss Streak 2 | . 1 1 2 1 Penetration Max . | . . . . . Secondary Targets 8 | . 1 . 5 2 Max Gunslinging Chain 1 | . 1 . 1 1 Shots Hit Robots 168 | . 36 21 62 49 Core Hits 64 | . 11 10 24 19 Critical Kills . | . . . . . Critical Parts Destroyed 1 | . 1 . . . Critical Strikes 1 | . 1 . . . Destroy 1 | . 1 . . . Melee Attacks . | . . . . . Impact . | . . . . . Slashing . | . . . . . Piercing . | . . . . . Sneak Attacks . | . . . . . Combat Hostiles . | . . . . . Follow-up Attacks . | . . . . . Damage Inflicted 1577 | . 380 221 549 427 Guns 1533 | . 380 221 542 390 Cannons . | . . . . . Explosions 37 | . . . . 37 Melee . | . . . . . Ramming 7 | . . . 7 . Kinetic 1377 | . 245 200 542 390 Thermal 193 | . 135 21 . 37 Explosive . | . . . . . Electromagnetic . | . . . . . Impact . | . . . . . Slashing . | . . . . . Piercing . | . . . . . Highest Corruption 1 | . 1 . . . Average Corruption 1 | . 1 . . . Corruption Purged . | . . . . . Corruption Blocked . | . . . . . Effects 1 | . 1 . . . Misfires 1 | . 1 . . . Overload Shots . | . . . . . Overflow Damage . | . . . . . Projectiles . | . . . . . Explosions . | . . . . . Melee . | . . . . . Knockbacks . | . . . . . Impact . | . . . . . Kinetic . | . . . . . Secondary . | . . . . . Self-Inflicted Damage . | . . . . . Shots . | . . . . . Rammed 2 | . . . 2 . Targets Rammed 2 | . . . 2 . Kicked . | . . . . . Crushed . | . . . . . Highest Temperature 228 | . 228 49 89 . Average Temperature 50 | . 93 23 27 . Received Heat Transfer 579 | . 273 63 243 . Effects 2 | . 2 . . . Interference 2 | . 2 . . . Siege Activations . | . . . . . Robots Corrupted . | . . . . . Combat Hostiles . | . . . . . Parts Fried . | . . . . . Impact Corruptions . | . . . . . Robots Melted . | . . . . . Combat Hostiles . | . . . . . Parts Melted . | . . . . . Heat Transferred 400 | . 300 50 . 50 Parts Sabotaged . | . . . . . Parts Stolen . | . . . . . Parts Stripped . | . . . . . Power Chain Reactions 1 | . . . . 1 Alert | -11 -10 -9 -8 -7 ------- Run | Yrd Mat Mat Mat Fac Peak Influence 262 | . 172 142 262 136 Initial 86 | . . . 42 86 Average 85 | . 109 51 128 82 Maximum Alert Level 1 | . . . 1 . Low Security (%) 97 | 100 100 100 85 100 Level 1 2 | . . . 14 . Level 2 . | . . . . . Level 3 . | . . . . . Level 4 . | . . . . . Level 5 . | . . . . . High Security . | . . . . . Max Security . | . . . . . Squads Dispatched 6 | . . . 2 4 Investigation . | . . . . . Extermination 1 | . . . . 1 Reinforcement 2 | . . . 2 . Assault . | . . . . . Garrison 3 | . . . . 3 Intercept . | . . . . . Searches Triggered . | . . . . . Construction Impeded 1 | . . . 1 . Haulers Reinforced . | . . . . . Active Scanning Responses . | . . . . . Cargo Convoy Interrupts . | . . . . . Stealth | -11 -10 -9 -8 -7 --------- Run | Yrd Mat Mat Mat Fac Distress Signals 4 | . 1 1 2 . Communications Jammed . | . . . . . Distress Signals . | . . . . . Times Spotted 42 | . 12 7 13 10 Peak Tracking Total 5 | . 5 2 4 3 Tactical Retreats 2 | . 2 . . . Traps | -11 -10 -9 -8 -7 ------- Run | Yrd Mat Mat Mat Fac Traps Triggered 2 | . 1 . 1 . Indirectly . | . . . . . Trap Hack Attempts . | . . . . . Triggered . | . . . . . Disarmed . | . . . . . Reprogrammed . | . . . . . Reused . | . . . . . Traps Extracted . | . . . . . Installed . | . . . . . Triggered . | . . . . . Machines | -11 -10 -9 -8 -7 ---------- Run | Yrd Mat Mat Mat Fac Machines Disabled 3 | . . . . 3 Max in Single Turn 3 | . . . . 3 Machines Repaired . | . . . . . Machines Dismantled . | . . . . . Machines Sabotaged . | . . . . . Overloaded Fab Kills . | . . . . . Hacking | -11 -10 -9 -8 -7 --------- Run | Yrd Mat Mat Mat Fac Machines Accessed 1 | . . 1 . . Terminals 1 | . . 1 . . Fabricators . | . . . . . Repair Stations . | . . . . . Recycling Units . | . . . . . Scanalyzers . | . . . . . Garrison Access . | . . . . . Total Hacks 3 | . . 3 . . Successful 1 | . . 1 . . Failed 2 | . . 2 . . Catastrophic . | . . . . . Database Lockouts . | . . . . . Manual 3 | . . 3 . . Terminals 3 | . . 3 . . Fabricators . | . . . . . Repair Stations . | . . . . . Recycling Units . | . . . . . Scanalyzers . | . . . . . Garrison Access . | . . . . . Terminal Hacks 1 | . . 1 . . Unreport Threat 1 | . . 1 . . Fabricator Hacks . | . . . . . Repair Station Hacks . | . . . . . Recycling Unit Hacks . | . . . . . Scanalyzer . | . . . . . Garrison Access Hacks . | . . . . . Unauthorized Hacks . | . . . . . Terminals . | . . . . . Fabricators . | . . . . . Repair Stations . | . . . . . Recycling Units . | . . . . . Scanalyzers . | . . . . . Garrison Access . | . . . . . Data Cores Recovered . | . . . . . Used . | . . . . . Hacking Detections 1 | . . 1 . . Full Trace Events . | . . . . . Feedback Events . | . . . . . Feedback Blocked . | . . . . . Robot Schematics Acquired . | . . . . . Robots Built . | . . . . . Authchips . | . . . . . Time . | . . . . . Total Robot Build Rating . | . . . . . Part Schematics Acquired . | . . . . . Parts Built . | . . . . . Authchips . | . . . . . Time . | . . . . . Total Part Build Rating . | . . . . . Parts Repaired . | . . . . . Time . | . . . . . Parts Recycled . | . . . . . Recycled Matter . | . . . . . Retrieved Matter . | . . . . . Retrieved Components . | . . . . . Parts Scanalyzed . | . . . . . Part Schematics Acquired . | . . . . . Parts Damaged . | . . . . . Bothacking | -11 -10 -9 -8 -7 ------------ Run | Yrd Mat Mat Mat Fac Used RIF Installer . | . . . . . Robots Hacked . | . . . . . Non-combat . | . . . . . Combat . | . . . . . Robot Hacks Applied . | . . . . . Relay Couplers Released . | . . . . . Fabnet Peak Effective % . | . . . . . Robots Rewired . | . . . . . Allies Hacked . | . . . . . Hacks Repelled . | . . . . . Allies | -11 -10 -9 -8 -7 -------- Run | Yrd Mat Mat Mat Fac Total Allies . | . . . . . Largest Group . | . . . . . Highest-Rated Group . | . . . . . Highest-Rated Ally . | . . . . . Total Orders . | . . . . . Ally Attacks . | . . . . . Total Damage . | . . . . . Kills . | . . . . . Allies Corrupted . | . . . . . Allies Melted . | . . . . . Intel | -11 -10 -9 -8 -7 ------- Run | Yrd Mat Mat Mat Fac Robot Analysis Total . | . . . . . Derelict Logs Recovered . | . . . . . Drone Launches . | . . . . . Drone Recoveries . | . . . . . Exploration | -11 -10 -9 -8 -7 ------------- Run | Yrd Mat Mat Mat Fac Turns Passed 2053 | 133 491 359 315 755 Spaces Moved 1107 | 79 269 181 142 436 Core 7 | 7 . . . . Treads 1100 | 72 269 181 142 436 Legs . | . . . . . Wheels . | . . . . . Hover . | . . . . . Flight . | . . . . . Fastest Speed 50 | 50 160 160 152 155 Average Speed 157 | 150 160 160 156 156 Slowest Speed 160 | 160 160 160 160 160 Overloaded Moves . | . . . . . Propulsion Burnouts . | . . . . . Robots Hopped . | . . . . . Cave-ins Triggered . | . . . . . Exploration Rate (%) 19 | 7 40 17 18 13 Regions Visited 4 Branch Regions . Pre-discovered Areas . | . . . . . Known Exits Taken 4 | 1 1 1 1 . Unknown Exits Taken . | . . . . . Scrap Searched . | . . . . . Spaces Dug . | . . . . . Terrain Destroyed 4 | . . . . 4 Melee . | . . . . . Projectile . | . . . . . AOE 4 | . . . . 4 Terrain Rammed . | . . . . . Walls Destroyed . | . . . . . Machines Disabled . | . . . . . Actions | -11 -10 -9 -8 -7 --------- Run | Yrd Mat Mat Mat Fac Total 1285 | 90 300 226 190 479 Wait 60 | . 13 19 11 17 Move 1103 | 78 268 180 141 436 Hop . | . . . . . Pick Up 16 | 5 2 4 2 3 Fast Attach 9 | 7 . . . 2 Attach 12 | . 2 3 5 2 Detach 1 | . . 1 . . Swap 9 | . . 4 4 1 Drop 3 | . . 2 1 . Fire 70 | . 15 13 24 18 Melee . | . . . . . Ram . | . . . . . Kick . | . . . . . Crush 2 | . . . 2 . Escape Stasis . | . . . . . Rewire . | . . . . . Trap . | . . . . . Miscellaneous . | . . . . . Route ------- -11/Scrapyard -10/Materials -9/Materials -8/Materials -7/Factory History --------- Turn | Location | Event 40 | -11/Scrapyard | Identified exit to Materials 40 | -11/Scrapyard | Discovered exit to Materials (range 16) 134 | -11/Scrapyard | Entered Materials 134 | -10/Materials | Evolved 1 slot: Weapon x1 272 | -10/Materials | Identified exit to Materials 272 | -10/Materials | Discovered exit to Materials (range 10) 307 | -10/Materials | Build established: Hacker-Skirmisher 500 | -10/Materials | Derelicts attacked the area 625 | -10/Materials | Entered another Materials area 625 | -9/Materials | Evolved 2 slots: Utility x2 894 | -9/Materials | Build established: Hacker-Gunner 980 | -9/Materials | Identified exit to Materials 980 | -9/Materials | Discovered exit to Materials (range 3) 984 | -9/Materials | Entered another Materials area 984 | -8/Materials | Evolved 2 slots: Power x1, Propulsion x1 1252 | -8/Materials | Identified exit to Factory 1252 | -8/Materials | Discovered exit to Factory (range 11) 1299 | -8/Materials | Entered Factory 1299 | -7/Factory | Evolved 2 slots: Utility x2 1837 | -7/Factory | Garrison activated, responded to threat 2054 | -7/Factory | Self-destructed Last Messages --------------- 01885_ S-27 Virus destroyed. 01885_ Switching to secondary target: S-27 Virus. 01886_ Adv. Treads destroyed. 01889_ S-27 Virus destroyed. 01889_ Switching to secondary target: S-27 Virus. 01894_ S-27 Virus destroyed. 01897_ K-01 Serf collects debris. 01904_ Neutrino Reactor explodes. 01904_ Pressure Siphon disabled. 01904_ Chain reaction triggered in Corrupted Lgt. Nuclear Core. 01904_ Pressure Siphon disabled. 01923_ ALERT: Cargo convoy en route, clear transfer corridor. 01980_ Acquired Hvy. Ion Cannon. 02049_ ALERT: Rogue bot located, Programmers report to Factory Zone 8U. 02054_ Lgt. Assault Rifle destroyed. Map ----- +----------------------------------------------------+ | ???????????? """"""" # | | ????????? ! """"""" + | | ?????????? # / | | ?????????????""""""" + | | ??????????????"""""" ###################### ## | | ???????????????""""" ####### =] # ## | | ???????????????""""" ##???## """ =] # ## | | ??????????? ##???## """ =] ! + ## | | ???????????################# """ # | | ???????????## ########## # ## | | ???????????## ## # ## | | ???????????## #####+######/#### =## | | ???????????## ##### ###### """" %%## | | ???????????## ##### ### ! *# | | ???????????#### ####### ### = + | | ???????######## ####### ### %* # | | ???????########+####### ### "%%% = %%"" #" | | ???????## ## ### "%%% """" #" | | ???????## """"""""" ## ### "%%% """" #" | | ???????## ## ### # | | ???????##! """"""""" # ""?? ## | | ???????## # ""??? ## | | ???????## """"""""" + b ""??????? | | ???????##! # "" "" ?????? | | ???????## """"""""" # l ""G"" ????? | | ???????## ####@#############+### ?????? | | ???????## """"""""" # ## # ?????? | | ???????## #* !##?????????? # ?????? | | ???????## ! ! # = ##?????????? # ?????? | | ???????############### ##??????????????????? | | ???????############### " "" ##??????????????????? | | ????????????????????## "R"" !##??????????????????? | | ????????????????????## """ ##??????????????????? | | ????????????????????###########??????????????????? | | ???????????????????? ??????????????????? | | ?????????????????????????????????????????????????? | | ?????????????????????????????????????????????????? | | ?????????????????????????????????????????????????? | | ?????????????????????????????????????????????????? | | ?????????????????????????????????????????????????? | | ?????????????????????????????????????????????????? | | ?????????????????????????????????????????????????? | | ?????????????????????????????????????????????????? | | ?????????????????????????????????????????????????? | | ?????????????????????????????????????????????????? | | ?????????????????????????????????????????????????? | | ?????????????????????????????????????????????????? | | ?????????????????????????????????????????????????? | | ?????????????????????????????????????????????????? | | ?????????????????????????????????????????????????? | +----------------------------------------------------+ Best States ------------- Heat Dissipation 48 Energy Generation 19 Energy Capacity 415 Matter Stores 300 Matter Capacity 300 Sight Range 16 Robot Scan Range 14 Terrain Scan Density 10 Armor Coverage 150 Resistance: KI 35 Resistance: TH 35 Resistance: EX 35 Resistance: EM 35 Resistance: I 35 Resistance: S 35 Resistance: P 35 Evasion (%) 40 Targeting Accuracy 15 Recoil Reduction 3 Offensive Hacking 20 Item Schematics ----------------- None Robot Schematics ------------------ None Fabricated ------------ Nothing Alien Tech Used ----------------- None Achievements -------------- None Challenges ------------ None Game ------ Seed PlatingRagnarokDisintegrator Manual? 0 Play Time 00:16:43 Cumulative 17.8 hours Start 2024.04.08 @ 01:41:12 End 2024.04.08 @ 01:57:32 Sessions 1 Manual Loads 0 Difficulty Explorer Special Mode None Game No. 34 Rogue 0 Adventurer 0 Explorer 34 Win Type - Total 0 Types 0/0/0/0/0/0/0/0/0 Lore% 24 Gallery% 20 Achievement% 20 Wizard Run 0 Options --------- Layout 1 ASCII 0 Keyboard 1 Movement Arrows Keybinds 0 Fullscreen 1 Font 24/Smallcaps Map View 50x35 Zoom Use 0% Tactical HUD 1 Map Filters NONE Filters NONE Steam 1 RUN: a595e40a-033c-44d2-9ed0-041f5438de6a